[Event "FIDE Womens Grand Swiss 2021"]
[Site "Riga"]
[Date "2021.10.31"]
[Round "5.16"]
[White "Rogule, Laura"]
[Black "Garifullina, Leya"]
[Result "1/2-1/2"]
[ECO "A20"]
[WhiteElo "2289"]
[BlackElo "2409"]
[Annotator "NA"]
[PlyCount "105"]
[EventDate "2021.10.27"]
[EventType "swiss"]
[EventCountry "LAT"]
[Tiebreak "Cut1 Buchholz+Sonneborn-Berger (Swiss)"]
[SourceTitle "playchess.com"]
[Source "ChessBase"]
[SourceQuality "1"]
[TimeControl "40/6000+30:20/3000+30:900+30"]

1. c4 {[%emt 0:10:03]} e5 {[%emt 0:10:26]} 2. g3 {[%emt 0:00:29]} c6 {[%emt 0:
00:08]} 3. Nf3 {[%emt 0:06:52]} e4 {[%emt 0:00:18]} 4. Nd4 {[%emt 0:00:17]} d5
{[%emt 0:00:06]} 5. cxd5 {[%emt 0:02:15]} Qxd5 {[%emt 0:00:09]} 6. e3 {[%emt 0:
05:59]} Nf6 {[%emt 0:06:17]} 7. Nc3 {[%emt 0:08:11]} Qe5 {[%emt 0:01:14]} 8.
Bg2 {[%emt 0:05:37]} Bc5 {[%emt 0:05:08]} 9. f4 {[%emt 0:07:05]} Qe7 {[%emt 0:
02:27]} 10. Nde2 {[%emt 0:14:14]} Bf5 {[%emt 0:07:51]} 11. Qc2 {[%emt 0:04:18]}
h5 {[%emt 0:05:13]} 12. Na4 {[%emt 0:07:30]} Bd6 {[%emt 0:06:10]} 13. b3 {
[%emt 0:11:21]} c5 {[%emt 0:05:58]} 14. Ba3 {[%emt 0:05:25]} Nbd7 {[%emt 0:04:
01]} 15. Rc1 {[%emt 0:01:19]} O-O {[%emt 0:05:13]} 16. h3 {[%emt 0:01:57]} Rac8
{[%emt 0:06:01]} 17. g4 {[%emt 0:07:25]} Bh7 {[%emt 0:07:11]} 18. Nac3 {
[%emt 0:00:46]} c4 {[%emt 0:04:52]} 19. Bxd6 {[%emt 0:00:54]} Qxd6 {[%emt 0:00:
04]} 20. g5 {[%emt 0:04:23]} cxb3 {[%emt 0:04:09]} 21. axb3 {[%emt 0:00:07]}
Nd5 {[%emt 0:02:11]} 22. Bxe4 {[%emt 0:00:28]} Bxe4 {[%emt 0:01:05]} 23. Nxe4 {
[%emt 0:02:16]} Qe6 {[%emt 0:04:32]} 24. N2c3 {[%emt 0:01:21]} f5 {[%emt 0:03:
32]} 25. gxf6 {[%emt 0:00:23]} N7xf6 {[%emt 0:00:04]} 26. Ng5 {[%emt 0:01:26]}
Qe8 {[%emt 0:01:29]} 27. O-O {[%emt 0:00:46]} Nxc3 {[%emt 0:00:17]} 28. dxc3 {
[%emt 0:00:15]} Qxe3+ {[%emt 0:00:04]} 29. Kg2 {[%emt 0:00:48]} Rfe8 {[%emt 0:
02:07]} 30. Rf2 {[%emt 0:00:29]} h4 {[%emt 0:01:51]} 31. c4 {[%emt 0:00:41]}
Rcd8 {[%emt 0:00:58]} 32. Rd1 {[%emt 0:00:25]} a5 {[%emt 0:04:29]} 33. Rxd8 {
[%emt 0:00:30]} Rxd8 {[%emt 0:00:03]} 34. Qe2 {[%emt 0:00:34]} Qxe2 {[%emt 0:
01:54]} 35. Rxe2 {[%emt 0:00:01]} Rd3 {[%emt 0:00:09]} 36. Re5 {[%emt 0:00:35]}
Rxb3 {[%emt 0:02:26]} 37. Rxa5 {[%emt 0:00:08]} g6 {[%emt 0:01:25]} 38. Rc5 {
[%emt 0:00:46]} Nh5 {[%emt 0:02:59]} 39. Rc8+ {[%emt 0:00:22]} Kg7 {[%emt 0:00:
06]} 40. Rc7+ {[%emt 0:00:09]} Kf8 {[%emt 0:00:58]} 41. Ne6+ {[%emt 0:33:23]}
Kg8 {[%emt 0:22:22]} 42. Kf2 {[%emt 0:03:53]} b6 {[%emt 0:01:14]} 43. c5 {
[%emt 0:06:36]} bxc5 {[%emt 0:00:05]} 44. Rxc5 {[%emt 0:00:30]} Kf7 {[%emt 0:
01:46]} 45. f5 {[%emt 0:05:30]} Ng3 {[%emt 0:03:18]} 46. Ng5+ {[%emt 0:00:44]}
Kf6 {[%emt 0:00:25]} 47. fxg6 {[%emt 0:00:18]} Kxg6 {[%emt 0:00:11]} 48. Ra5 {
[%emt 0:00:48]} Nf5 {[%emt 0:01:35]} 49. Nf3 {[%emt 0:00:35]} Rb2+ {[%emt 0:00:
05]} 50. Kg1 {[%emt 0:00:26]} Kf6 {[%emt 0:00:31]} 51. Ra6+ {[%emt 0:00:44]}
Ke7 {[%emt 0:00:04]} 52. Ra4 {[%emt 0:00:29]} Kf6 {[%emt 0:01:52]} 53. Ra1 {
[%emt 0:00:49]} 1/2-1/2

[Event "FIDE Womens Grand Swiss 2021"]
[Site "Riga"]
[Date "2021.10.31"]
[Round "5.17"]
[White "Danielian, Elina"]
[Black "Maltsevskaya, Aleksandra"]
[Result "0-1"]
[ECO "E60"]
[WhiteElo "2450"]
[BlackElo "2411"]
[Annotator "ChessBase"]
[PlyCount "56"]
[EventDate "2021.10.27"]
[EventType "swiss"]
[EventCountry "LAT"]
[Tiebreak "Cut1 Buchholz+Sonneborn-Berger (Swiss)"]
[SourceTitle "playchess.com"]
[Source "ChessBase"]
[SourceQuality "1"]
[TimeControl "40/6000+30:20/3000+30:900+30"]

1. d4 {[%emt 0:10:07]} Nf6 {[%emt 0:10:09]} 2. Nf3 {[%emt 0:00:06]} g6 {
[%emt 0:00:19]} 3. c4 {[%emt 0:00:05]} c5 {[%emt 0:00:23]} 4. g3 {[%emt 0:01:
27]} cxd4 {[%emt 0:01:05]} 5. Nxd4 {[%emt 0:00:07]} Bg7 {[%emt 0:00:09]} 6. Bg2
{[%emt 0:00:06]} O-O {[%emt 0:00:50]} 7. Nc3 {[%emt 0:00:45]} Qc7 {[%emt 0:00:
08]} 8. b3 {[%emt 0:30:16]} d5 {[%emt 0:05:56]} 9. O-O {[%emt 0:01:39]} dxc4 {
[%emt 0:12:02]} 10. Ndb5 {[%emt 0:00:50]} Qa5 {[%emt 0:00:18]} 11. b4 {[%emt 0:
08:06]} Qd8 {[%emt 0:13:19]} 12. Qxd8 {[%emt 0:17:23]} Rxd8 {[%emt 0:00:06]}
13. Bf4 {[%emt 0:03:03]} Nc6 {[%emt 0:09:39]} 14. Nc7 {[%emt 0:03:42]} Nh5 {
[%emt 0:12:40]} 15. Nxa8 {[%emt 0:15:44]} Nxf4 {[%emt 0:01:57]} 16. gxf4 {
[%emt 0:03:49]} Bxc3 {[%emt 0:00:08]} 17. Rac1 {[%emt 0:03:21]} Nd4 {[%emt 0:
07:40]} 18. Bf3 {[%emt 0:05:14]} Nxf3+ {[%emt 0:04:18]} 19. exf3 {[%emt 0:00:
02]} Bd2 {[%emt 0:03:05]} 20. Rfd1 {[%emt 0:02:50]} Rd4 {[%emt 0:01:17]} 21.
Nc7 {[%emt 0:00:10]} Bd7 {[%emt 0:00:34]} 22. Kg2 {[%emt 0:01:43]} c3 {[%emt 0:
00:25]} 23. b5 {[%emt 0:00:33]} b6 {[%emt 0:03:50]} 24. a4 {[%emt 0:00:15]} Bf5
{[%emt 0:02:21]} 25. Kf1 {[%emt 0:00:27]} Bd3+ {[%emt 0:00:38]} 26. Kg2 {
[%emt 0:00:03]} Bxc1 {[%emt 0:00:06]} 27. Rxc1 {[%emt 0:00:02]} c2 {[%emt 0:00:
05]} 28. Na6 {[%emt 0:01:41]} Bf5 {[%emt 0:00:11]} 0-1

[Event "FIDE Womens Grand Swiss 2021"]
[Site "Riga"]
[Date "2021.10.31"]
[Round "5.18"]
[White "Bivol, Alina"]
[Black "Cramling, Pia"]
[Result "1/2-1/2"]
[ECO "B51"]
[WhiteElo "2392"]
[BlackElo "2447"]
[Annotator "ChessBase"]
[PlyCount "214"]
[EventDate "2021.10.27"]
[EventType "swiss"]
[EventCountry "LAT"]
[Tiebreak "Cut1 Buchholz+Sonneborn-Berger (Swiss)"]
[SourceTitle "playchess.com"]
[Source "ChessBase"]
[SourceQuality "1"]
[TimeControl "40/6000+30:20/3000+30:900+30"]

1. e4 {[%emt 0:10:14]} c5 {[%emt 0:10:07]} 2. Nf3 {[%emt 0:00:09]} d6 {[%emt 0:
00:08]} 3. Bb5+ {[%emt 0:00:14]} Nd7 {[%emt 0:00:08]} 4. d4 {[%emt 0:00:15]}
cxd4 {[%emt 0:01:05]} 5. Qxd4 {[%emt 0:00:07]} a6 {[%emt 0:00:14]} 6. Be2 {
[%emt 0:00:11]} Ngf6 {[%emt 0:00:57]} 7. c4 {[%emt 0:00:19]} g6 {[%emt 0:02:27]
} 8. Nc3 {[%emt 0:03:06]} Bg7 {[%emt 0:00:11]} 9. O-O {[%emt 0:00:06]} O-O {
[%emt 0:00:09]} 10. Rd1 {[%emt 0:00:17]} Nc5 {[%emt 0:15:19]} 11. e5 {[%emt 0:
00:13]} Ng4 {[%emt 0:10:15]} 12. Be3 {[%emt 0:00:14]} Be6 {[%emt 0:12:21]} 13.
h3 {[%emt 0:14:46]} Nxe3 {[%emt 0:00:30]} 14. Qxe3 {[%emt 0:00:28]} Qb6 {
[%emt 0:03:52]} 15. exd6 {[%emt 0:13:20]} exd6 {[%emt 0:00:15]} 16. Qd2 {
[%emt 0:00:23]} Rad8 {[%emt 0:02:59]} 17. Rac1 {[%emt 0:03:58]} Rfe8 {[%emt 0:
09:31]} 18. Bf1 {[%emt 0:01:09]} Bf5 {[%emt 0:08:00]} 19. b3 {[%emt 0:16:21]}
Ne4 {[%emt 0:02:32]} 20. Nxe4 {[%emt 0:02:42]} Bxe4 {[%emt 0:00:08]} 21. Nd4 {
[%emt 0:00:24]} h5 {[%emt 0:02:04]} 22. Ne2 {[%emt 0:11:43]} Kh7 {[%emt 0:01:
53]} 23. Nf4 {[%emt 0:12:10]} Bh6 {[%emt 0:00:50]} 24. g3 {[%emt 0:00:56]} h4 {
[%emt 0:01:11]} 25. Qd4 {[%emt 0:02:13]} Qc5 {[%emt 0:06:20]} 26. Qxc5 {
[%emt 0:02:40]} dxc5 {[%emt 0:00:02]} 27. Rxd8 {[%emt 0:00:12]} Rxd8 {[%emt 0:
00:03]} 28. Re1 {[%emt 0:00:08]} Rd4 {[%emt 0:01:24]} 29. Nd5 {[%emt 0:01:39]}
Kg7 {[%emt 0:03:05]} 30. Nc3 {[%emt 0:05:52]} Bc6 {[%emt 0:04:08]} 31. Re5 {
[%emt 0:03:28]} Kf6 {[%emt 0:02:33]} 32. Re2 {[%emt 0:01:43]} Bf3 {[%emt 0:01:
14]} 33. Re8 {[%emt 0:00:17]} Kg7 {[%emt 0:02:28]} 34. Bg2 {[%emt 0:01:30]} Rd3
{[%emt 0:01:48]} 35. Bxf3 {[%emt 0:02:06]} Rxf3 {[%emt 0:00:35]} 36. Ne2 {
[%emt 0:00:35]} Rd3 {[%emt 0:00:37]} 37. gxh4 {[%emt 0:00:20]} Rd2 {[%emt 0:00:
33]} 38. Nc3 {[%emt 0:00:07]} Rc2 {[%emt 0:02:01]} 39. Ne4 {[%emt 0:00:59]}
Rxa2 {[%emt 0:00:32]} 40. Rb8 {[%emt 0:00:28]} b5 {[%emt 0:03:59]} 41. cxb5 {
[%emt 0:50:12]} axb5 {[%emt 0:50:01]} 42. Rxb5 {[%emt 0:00:24]} Re2 {[%emt 0:
00:00]} 43. Nc3 {[%emt 0:00:00]} Re5 {[%emt 0:00:00]} 44. Na4 {[%emt 0:00:00]}
Re4 {[%emt 0:00:00]} 45. Rxc5 {[%emt 0:00:00]} Rxh4 {[%emt 0:00:00]} 46. Kg2 {
[%emt 0:00:00]} Rb4 {[%emt 0:00:00]} 47. Rc3 {[%emt 0:00:00]} Bg5 {[%emt 0:00:
00]} 48. Nc5 {[%emt 0:00:00]} Be7 {[%emt 0:00:00]} 49. Na4 {[%emt 0:00:00]} Bf6
{[%emt 0:00:00]} 50. Rf3 {[%emt 0:00:00]} Be5 {[%emt 0:00:00]} 51. Nc5 {
[%emt 0:00:00]} Bd6 {[%emt 0:00:00]} 52. Na4 {[%emt 0:00:00]} Be5 {[%emt 0:00:
00]} 53. Kf1 {[%emt 0:00:00]} f5 {[%emt 0:00:00]} 54. Ke2 {[%emt 0:00:00]} Kf6
{[%emt 0:00:00]} 55. Kd2 {[%emt 0:00:00]} g5 {[%emt 0:00:03]} 56. Nc3 {[%emt 0:
00:00]} Ke6 {[%emt 0:00:37]} 57. Ne2 {[%emt 0:00:00]} g4 {[%emt 0:01:12]} 58.
Rd3 {[%emt 0:00:00]} Rb8 {[%emt 0:01:10]} 59. Re3 {[%emt 0:00:00]} Kf6 {
[%emt 0:00:33]} 60. hxg4 {[%emt 0:00:16]} fxg4 {[%emt 0:00:04]} 61. Rd3 {
[%emt 0:15:40]} Ke6 {[%emt 0:16:48]} 62. Ng3 {[%emt 0:00:18]} Rb4 {[%emt 0:00:
41]} 63. Nf1 {[%emt 0:01:17]} Rb7 {[%emt 0:01:12]} 64. Ke2 {[%emt 0:00:14]} Rb8
{[%emt 0:00:46]} 65. Nd2 {[%emt 0:00:48]} Rb4 {[%emt 0:01:51]} 66. Nc4 {
[%emt 0:00:28]} Bb8 {[%emt 0:00:50]} 67. Kf1 {[%emt 0:06:07]} Bc7 {[%emt 0:00:
48]} 68. Kg2 {[%emt 0:00:37]} Bb8 {[%emt 0:00:17]} 69. Ne3 {[%emt 0:01:37]} Be5
{[%emt 0:00:22]} 70. Nc2 {[%emt 0:00:55]} Rb7 {[%emt 0:01:15]} 71. b4 {[%emt 0:
00:11]} Kf5 {[%emt 0:01:49]} 72. Rb3 {[%emt 0:02:15]} Ke4 {[%emt 0:00:11]} 73.
Ne3 {[%emt 0:00:38]} Rg7 {[%emt 0:00:39]} 74. Nc4 {[%emt 0:00:08]} Bd4 {
[%emt 0:00:58]} 75. Kg3 {[%emt 0:00:16]} Ba7 {[%emt 0:00:30]} 76. Nd6+ {
[%emt 0:01:02]} Ke5 {[%emt 0:00:23]} 77. Nc4+ {[%emt 0:00:42]} Ke4 {[%emt 0:00:
19]} 78. b5 {[%emt 0:00:31]} Bb8+ {[%emt 0:00:25]} 79. Kg2 {[%emt 0:00:48]} Rg5
{[%emt 0:00:29]} 80. b6 {[%emt 0:00:25]} Kd4 {[%emt 0:00:14]} 81. Na3 {[%emt 0:
00:26]} Rg6 {[%emt 0:00:57]} 82. b7 {[%emt 0:00:40]} Kd5 {[%emt 0:01:05]} 83.
Rb5+ {[%emt 0:01:12]} Kc6 {[%emt 0:00:11]} 84. Rb3 {[%emt 0:00:07]} Kc5 {
[%emt 0:00:54]} 85. Nc2 {[%emt 0:00:42]} Rb6 {[%emt 0:00:51]} 86. Rc3+ {
[%emt 0:00:05]} Kd6 {[%emt 0:00:35]} 87. Ne3 {[%emt 0:00:33]} Rxb7 {[%emt 0:00:
10]} 88. Nxg4 {[%emt 0:00:03]} Ke6 {[%emt 0:00:21]} 89. Ne3 {[%emt 0:00:30]}
Ba7 {[%emt 0:00:18]} 90. Ng4 {[%emt 0:01:15]} Kf5 {[%emt 0:00:20]} 91. Kg3 {
[%emt 0:00:31]} Rh7 {[%emt 0:01:06]} 92. Rf3+ {[%emt 0:00:23]} Kg5 {[%emt 0:00:
30]} 93. Rb3 {[%emt 0:00:03]} Rc7 {[%emt 0:00:41]} 94. f3 {[%emt 0:00:26]} Kg6
{[%emt 0:00:32]} 95. Rb5 {[%emt 0:00:21]} Bd4 {[%emt 0:00:24]} 96. Rd5 {
[%emt 0:01:04]} Bg7 {[%emt 0:00:24]} 97. Nf2 {[%emt 0:00:28]} Re7 {[%emt 0:01:
04]} 98. f4 {[%emt 0:00:39]} Re1 {[%emt 0:00:34]} 99. Rg5+ {[%emt 0:00:16]} Kf7
{[%emt 0:00:10]} 100. Ng4 {[%emt 0:00:34]} Ra1 {[%emt 0:00:33]} 101. Rb5 {
[%emt 0:00:54]} Ra3+ {[%emt 0:00:24]} 102. Kh4 {[%emt 0:00:20]} Bf6+ {[%emt 0:
00:44]} 103. Nxf6 {[%emt 0:00:07]} Kxf6 {[%emt 0:00:02]} 104. Kg4 {[%emt 0:00:
06]} Ra6 {[%emt 0:00:43]} 105. Rh5 {[%emt 0:00:22]} Kg7 {[%emt 0:00:31]} 106.
Rh4 {[%emt 0:00:57]} Ra5 {[%emt 0:00:12]} 107. Rh5 {[%emt 0:00:12]} Rxh5 {
[%emt 0:00:23]} 1/2-1/2

[Event "FIDE Womens Grand Swiss 2021"]
[Site "Riga"]
[Date "2021.10.31"]
[Round "5.19"]
[White "Arabidze, Meri"]
[Black "Socko, Monika"]
[Result "0-1"]
[ECO "D37"]
[WhiteElo "2441"]
[BlackElo "2397"]
[Annotator "NA"]
[PlyCount "141"]
[EventDate "2021.10.27"]
[EventType "swiss"]
[EventCountry "LAT"]
[Tiebreak "Cut1 Buchholz+Sonneborn-Berger (Swiss)"]
[SourceTitle "playchess.com"]
[Source "ChessBase"]
[SourceQuality "1"]
[TimeControl "40/6000+30:20/3000+30:900+30"]

1. d4 {[%emt 0:10:04]} Nf6 {[%emt 0:10:26]} 2. c4 {[%emt 0:00:06]} e6 {[%emt 0:
00:08]} 3. Nc3 {[%emt 0:00:08]} d5 {[%emt 0:01:45]} 4. Nf3 {[%emt 0:00:23]} Be7
{[%emt 0:01:16]} 5. Bf4 {[%emt 0:02:33]} O-O {[%emt 0:02:04]} 6. a3 {[%emt 0:
00:42]} c6 {[%emt 0:04:11]} 7. e3 {[%emt 0:02:32]} Nbd7 {[%emt 0:00:42]} 8. h3
{[%emt 0:00:34]} Re8 {[%emt 0:03:50]} 9. Qc2 {[%emt 0:02:21]} Nf8 {[%emt 0:01:
15]} 10. Rd1 {[%emt 0:06:02]} Ng6 {[%emt 0:03:32]} 11. Bg3 {[%emt 0:03:25]} Bd6
{[%emt 0:03:28]} 12. Ne5 {[%emt 0:02:11]} dxc4 {[%emt 0:24:07]} 13. Bxc4 {
[%emt 0:01:07]} Qc7 {[%emt 0:00:18]} 14. f4 {[%emt 0:03:38]} a6 {[%emt 0:01:16]
} 15. h4 {[%emt 0:20:15]} Nd5 {[%emt 0:16:40]} 16. Bf2 {[%emt 0:01:48]} Nxc3 {
[%emt 0:01:12]} 17. bxc3 {[%emt 0:04:25]} c5 {[%emt 0:02:56]} 18. h5 {[%emt 0:
03:27]} Nf8 {[%emt 0:04:05]} 19. h6 {[%emt 0:02:41]} g6 {[%emt 0:01:02]} 20.
Ng4 {[%emt 0:07:26]} Be7 {[%emt 0:00:29]} 21. Bh4 {[%emt 0:02:12]} cxd4 {
[%emt 0:04:44]} 22. Bxe7 {[%emt 0:03:29]} Rxe7 {[%emt 0:02:49]} 23. Rxd4 {
[%emt 0:03:35]} b5 {[%emt 0:01:50]} 24. Be2 {[%emt 0:01:33]} e5 {[%emt 0:03:22]
} 25. Nf6+ {[%emt 0:07:35]} Kh8 {[%emt 0:00:01]} 26. Nd5 {[%emt 0:00:12]} Qc5 {
[%emt 0:00:15]} 27. Rd2 {[%emt 0:01:58]} Bf5 {[%emt 0:03:03]} 28. Qb2 {[%emt 0:
09:28]} Rd7 {[%emt 0:01:03]} 29. c4 {[%emt 0:00:17]} Re8 {[%emt 0:00:14]} 30.
fxe5 {[%emt 0:03:10]} Ne6 {[%emt 0:01:44]} 31. Qb4 {[%emt 0:01:41]} bxc4 {
[%emt 0:01:42]} 32. Qxc5 {[%emt 0:02:59]} Nxc5 {[%emt 0:00:03]} 33. Bxc4 {
[%emt 0:00:04]} Red8 {[%emt 0:02:35]} 34. O-O {[%emt 0:02:12]} Be4 {[%emt 0:02:
27]} 35. Rfd1 {[%emt 0:00:22]} Ne6 {[%emt 0:00:20]} 36. Kh2 {[%emt 0:01:16]}
Nc7 {[%emt 0:00:50]} 37. Nf6 {[%emt 0:00:30]} Rxd2 {[%emt 0:00:08]} 38. Rxd2 {
[%emt 0:00:04]} Rxd2 {[%emt 0:00:03]} 39. Nxe4 {[%emt 0:00:04]} Rd7 {[%emt 0:
00:31]} 40. Nd6 {[%emt 0:01:06]} Kg8 {[%emt 0:03:39]} 41. Kg3 {[%emt 0:23:48]}
Ne6 {[%emt 0:29:17]} 42. Bxa6 {[%emt 0:05:31]} Ra7 {[%emt 0:01:13]} 43. Bc4 {
[%emt 0:00:12]} Rxa3 {[%emt 0:02:05]} 44. Bxe6 {[%emt 0:08:28]} fxe6 {[%emt 0:
00:04]} 45. Kf4 {[%emt 0:00:13]} Ra1 {[%emt 0:02:57]} 46. g4 {[%emt 0:04:05]}
Rf1+ {[%emt 0:01:17]} 47. Kg5 {[%emt 0:00:31]} Rf3 {[%emt 0:01:28]} 48. Ne8 {
[%emt 0:02:41]} Kf7 {[%emt 0:06:07]} 49. Nd6+ {[%emt 0:07:20]} Ke7 {[%emt 0:00:
15]} 50. Nc4 {[%emt 0:02:27]} Rh3 {[%emt 0:01:12]} 51. e4 {[%emt 0:00:08]} Rc3
{[%emt 0:01:14]} 52. Nd2 {[%emt 0:00:49]} Rd3 {[%emt 0:02:06]} 53. Nc4 {
[%emt 0:00:13]} Rc3 {[%emt 0:00:17]} 54. Nd2 {[%emt 0:00:07]} Kf7 {[%emt 0:03:
03]} 55. Kf4 {[%emt 0:00:29]} Rh3 {[%emt 0:00:10]} 56. Kg5 {[%emt 0:00:13]} Rh1
{[%emt 0:01:38]} 57. Nc4 {[%emt 0:01:12]} Rc1 {[%emt 0:00:07]} 58. Nd6+ {
[%emt 0:00:53]} Ke7 {[%emt 0:00:02]} 59. Kf4 {[%emt 0:00:21]} Rc5 {[%emt 0:01:
07]} 60. g5 {[%emt 0:00:13]} Kd7 {[%emt 0:02:28]} 61. Nf7 {[%emt 0:15:28]} Rc6
{[%emt 0:16:00]} 62. Ke3 {[%emt 0:00:37]} Rc3+ {[%emt 0:00:16]} 63. Kf4 {
[%emt 0:00:05]} Rd3 {[%emt 0:00:52]} 64. Kg4 {[%emt 0:01:16]} Ke7 {[%emt 0:00:
53]} 65. Nd6 {[%emt 0:00:15]} Rxd6 {[%emt 0:01:09]} 66. exd6+ {[%emt 0:00:05]}
Kxd6 {[%emt 0:00:02]} 67. Kf3 {[%emt 0:00:30]} Kc5 {[%emt 0:00:55]} 68. Ke3 {
[%emt 0:00:23]} Kc4 {[%emt 0:00:41]} 69. Kf3 {[%emt 0:00:43]} Kd4 {[%emt 0:00:
45]} 70. Kf4 {[%emt 0:00:06]} e5+ {[%emt 0:00:01]} 71. Kf3 {[%emt 0:00:08]} 0-1

[Event "FIDE Womens Grand Swiss 2021"]
[Site "Riga"]
[Date "2021.10.31"]
[Round "5.20"]
[White "Atalik, Ekaterina"]
[Black "Hoang, Thanh Trang"]
[Result "1/2-1/2"]
[ECO "A80"]
[WhiteElo "2420"]
[BlackElo "2380"]
[Annotator "NA"]
[PlyCount "69"]
[EventDate "2021.10.27"]
[EventType "swiss"]
[EventCountry "LAT"]
[Tiebreak "Cut1 Buchholz+Sonneborn-Berger (Swiss)"]
[SourceTitle "playchess.com"]
[Source "ChessBase"]
[SourceQuality "1"]
[TimeControl "40/6000+30:20/3000+30:900+30"]

1. d4 {[%emt 0:10:04]} e6 {[%emt 0:10:26]} 2. Nf3 {[%emt 0:00:27]} f5 {[%emt 0:
00:38]} 3. Bf4 {[%emt 0:00:31]} Nf6 {[%emt 0:01:19]} 4. e3 {[%emt 0:01:13]} g6
{[%emt 0:03:52]} 5. Be2 {[%emt 0:02:57]} Bg7 {[%emt 0:00:58]} 6. h3 {[%emt 0:
01:03]} d6 {[%emt 0:01:53]} 7. c4 {[%emt 0:00:54]} Qe7 {[%emt 0:04:07]} 8. Nc3
{[%emt 0:01:53]} O-O {[%emt 0:01:21]} 9. O-O {[%emt 0:00:38]} Nc6 {[%emt 0:02:
03]} 10. Bh2 {[%emt 0:03:06]} Nd8 {[%emt 0:07:22]} 11. Rc1 {[%emt 0:05:08]} Nf7
{[%emt 0:01:07]} 12. c5 {[%emt 0:09:45]} dxc5 {[%emt 0:07:25]} 13. Nb5 {
[%emt 0:07:59]} Nd5 {[%emt 0:03:02]} 14. Rxc5 {[%emt 0:02:16]} c6 {[%emt 0:01:
09]} 15. Rxd5 {[%emt 0:11:23]} exd5 {[%emt 0:05:24]} 16. Nc7 {[%emt 0:00:27]}
Bd7 {[%emt 0:05:03]} 17. Nxa8 {[%emt 0:00:21]} Rxa8 {[%emt 0:00:08]} 18. Ne1 {
[%emt 0:01:03]} Re8 {[%emt 0:01:54]} 19. Bf3 {[%emt 0:02:08]} Bf6 {[%emt 0:06:
13]} 20. Nd3 {[%emt 0:01:26]} Kg7 {[%emt 0:00:50]} 21. Qb3 {[%emt 0:06:01]} Bc8
{[%emt 0:01:24]} 22. Qb4 {[%emt 0:04:41]} Qxb4 {[%emt 0:06:25]} 23. Nxb4 {
[%emt 0:00:03]} g5 {[%emt 0:08:13]} 24. Bh5 {[%emt 0:05:50]} f4 {[%emt 0:01:38]
} 25. exf4 {[%emt 0:07:36]} gxf4 {[%emt 0:02:15]} 26. Bxf4 {[%emt 0:04:44]}
Bxd4 {[%emt 0:00:36]} 27. b3 {[%emt 0:01:51]} Bf5 {[%emt 0:01:51]} 28. Rd1 {
[%emt 0:00:31]} Bf6 {[%emt 0:07:01]} 29. Nd3 {[%emt 0:04:38]} Bg6 {[%emt 0:00:
38]} 30. Bxg6 {[%emt 0:00:46]} hxg6 {[%emt 0:00:10]} 31. Kf1 {[%emt 0:01:04]}
Bg5 {[%emt 0:01:47]} 32. Bg3 {[%emt 0:01:25]} Bf6 {[%emt 0:02:32]} 33. Bf4 {
[%emt 0:00:48]} Bg5 {[%emt 0:00:30]} 34. Bh2 {[%emt 0:00:55]} Bf6 {[%emt 0:00:
13]} 35. Bf4 {[%emt 0:02:23]} 1/2-1/2

[Event "FIDE Womens Grand Swiss 2021"]
[Site "Riga"]
[Date "2021.10.31"]
[Round "5.21"]
[White "Houska, Jovanka"]
[Black "Buksa, Nataliya"]
[Result "1/2-1/2"]
[ECO "D37"]
[WhiteElo "2381"]
[BlackElo "2409"]
[Annotator "NA"]
[PlyCount "62"]
[EventDate "2021.10.27"]
[EventType "swiss"]
[EventCountry "LAT"]
[Tiebreak "Cut1 Buchholz+Sonneborn-Berger (Swiss)"]
[SourceTitle "playchess.com"]
[Source "ChessBase"]
[SourceQuality "1"]
[TimeControl "40/6000+30:20/3000+30:900+30"]

1. d4 {[%emt 0:10:06]} Nf6 {[%emt 0:10:06]} 2. Nf3 {[%emt 0:00:05]} d5 {
[%emt 0:00:16]} 3. c4 {[%emt 0:00:05]} e6 {[%emt 0:00:19]} 4. Nc3 {[%emt 0:00:
05]} Nbd7 {[%emt 0:00:04]} 5. Bf4 {[%emt 0:00:20]} dxc4 {[%emt 0:00:12]} 6. e3
{[%emt 0:00:23]} Nd5 {[%emt 0:00:12]} 7. Bxc4 {[%emt 0:00:37]} Nxf4 {[%emt 0:
00:05]} 8. exf4 {[%emt 0:00:04]} Nb6 {[%emt 0:00:05]} 9. Bb3 {[%emt 0:02:51]}
g6 {[%emt 0:00:57]} 10. O-O {[%emt 0:02:58]} Bg7 {[%emt 0:00:03]} 11. Ne5 {
[%emt 0:04:36]} O-O {[%emt 0:00:54]} 12. Rc1 {[%emt 0:03:02]} a5 {[%emt 0:02:
05]} 13. a3 {[%emt 0:06:28]} Bd7 {[%emt 0:24:49]} 14. d5 {[%emt 0:20:37]} exd5
{[%emt 0:03:19]} 15. Nxd5 {[%emt 0:01:06]} Nxd5 {[%emt 0:01:37]} 16. Qxd5 {
[%emt 0:01:06]} Be6 {[%emt 0:17:37]} 17. Qf3 {[%emt 0:07:41]} c6 {[%emt 0:07:
54]} 18. Bxe6 {[%emt 0:04:04]} Bxe5 {[%emt 0:02:55]} 19. fxe5 {[%emt 0:01:31]}
fxe6 {[%emt 0:00:04]} 20. Qe3 {[%emt 0:00:04]} Qe7 {[%emt 0:02:10]} 21. Rfd1 {
[%emt 0:08:26]} Rfd8 {[%emt 0:05:12]} 22. g3 {[%emt 0:02:27]} Rxd1+ {[%emt 0:
00:59]} 23. Rxd1 {[%emt 0:00:13]} Rd8 {[%emt 0:00:03]} 24. Rxd8+ {[%emt 0:00:
16]} Qxd8 {[%emt 0:00:03]} 25. h4 {[%emt 0:00:27]} a4 {[%emt 0:13:03]} 26. Kh2
{[%emt 0:06:10]} b5 {[%emt 0:10:44]} 27. Qa7 {[%emt 0:03:06]} Qd2 {[%emt 0:00:
42]} 28. Qb8+ {[%emt 0:00:20]} Kg7 {[%emt 0:00:04]} 29. Qa7+ {[%emt 0:00:09]}
Kg8 {[%emt 0:00:50]} 30. Qb8+ {[%emt 0:00:44]} Kg7 {[%emt 0:00:03]} 31. Qa7+ {
[%emt 0:00:26]} Kf8 {[%emt 0:00:17]} 1/2-1/2